Workbook

Sheet Итог
A2: № п/п | B2: Деталь | C2: Наименование | D2: Кол-во деталей
A3: 1 | B3: 301714.036 | C3: Пластина | D3: 1
A4: 2 | B4: 304552.058-01 | C4: Рычаг | D4: 1
A5: 3 | B5: 685121.022-01 | C5: Нож контактный | D5: 1
A6: 4 | B6: 685172.103 | C6: Нож контактный | D6: 1
A7: 5 | B7: 715112.028 | C7: Ось | D7: 1 | G7: Примерный алгоритм работы
A8: 6 | B8: 715112.029-01 | C8: Вал | D8: 1 | F8: 1 | G8: Берём номер из столбца "Деталь"
A9: 7 | B9: 715412.012 | C9: Ось | D9: 1 | F9: 2 | G9: Ищем его на листе "Данные"
A10: 8 | B10: 725421.001 | C10: Пружинодержатель | D10: 1 | F10: 2.2 | G10: Если на листе "Данные" в столбце "Материал" значение (Сборка), то единица попадает на лист "Сборка"
A11: 9 | B11: 731213.001 | C11: Кожух | D11: 1 | F11: 2.3 | G11: Если на листе "Данные" в столбце "Материал" значение (Покупные, Кооперация), то единица попадает на лист "Покупные"
A12: 10 | B12: 741124.023 | C12: Пластина | D12: 1 | F12: 2.4 | G12: Если на листе "Данные" в столбце "Материал" значение (Крепёж), то единица попадает на лист "Крепёж"
A13: 11 | B13: 741124.104-01 | C13: Планка | D13: 1 | F13: 2.5 | G13: Если на листе "Данные" в столбце "Материал" значение отличное от вержних 3, то единица попадает на лист "Механический"
A14: 12 | B14: 743125.002 | C14: Рычаг | D14: 1 | F14: 7 | G14: Затем заполняется лист Материал
A15: 13 | B15: 745112.008-01 | C15: Пластина | D15: 1 | F15: 8 | G15: Берем детали из полученного листа "Механический" ищем Материал на листе данные и Норму расхода и ссумируем по потребности данных деталей
A16: 14 | B16: 745115.002 | C16: Пластина | D16: 2
A17: 15 | B17: 745212.063 | C17: Контакт | D17: 1
A18: 16 | B18: 745232.001-01 | C18: Угольник | D18: 1
A19: 17 | B19: 745242.031-02 | C19: Контакт | D19: 1
A20: 18 | B20: 745246.002 | C20: Контакт | D20: 1
A21: 19 | B21: 745247.001 | C21: Ламель | D21: 2
A22: 20 | B22: 745261.019 | C22: Угольник | D22: 2
A23: 21 | B23: 753513.001 | C23: Пружина | D23: 1
A24: 22 | B24: 757491.002 | C24: Связь гибкая | D24: 1
A25: 23 | B25: 758491.003 | C25: Шайба | D25: 2
A26: 24 | B26: 758491.040 | C26: Шайба | D26: 4
A27: 25 | B27: 758491.154-03 | C27: Шайба 8х1.02.119 ГОСТ11371-78 | D27: 13
A28: 26 | B28: 758491.155-06 | C28: Шайба 10х1.02.119 ГОСТ11371-78 | D28: 4
A29: 27 | B29: 758491.156-03 | C29: Шайба 12х1.02.119 ГОСТ11371-78 | D29: 2
A30: 28 | B30: Болт М10х20 | C30: ГОСТ 7798-70 | D30: 2
A31: 29 | B31: Болт М10х25 | C31: ГОСТ 7798-70 | D31: 1
A32: 30 | B32: Болт М10х35 | C32: ГОСТ 7798-70 | D32: 1
A33: 31 | B33: Болт М12х40 | C33: ГОСТ 7798-70 | D33: 2
A34: 32 | B34: Болт М8х20 | C34: ГОСТ 7798-70 | D34: 3
A35: 33 | B35: Болт М8х25 | C35: ГОСТ 7796-70 | D35: 3
A36: 34 | B36: Болт М8х70 | C36: ГОСТ 7798-70 | D36: 1
A37: 35 | B37: Гайка М10 | C37: ГОСТ 5915-70 | D37: 2
A38: 36 | B38: Гайка М12 | C38: ГОСТ 5915-70 | D38: 2
A39: 37 | B39: Гайка М8 | C39: ГОСТ 5915-70 | D39: 6
A40: 38 | B40: Заклепка 5х16.38.М3 | C40: ГОСТ 10299-80 | D40: 2
A41: 39 | B41: С4-80-II УХЛ1 | C41: Изолятор ГОСТ 25073-81 | D41: 1
A42: 40 | B42: Шайба 10.65Г | C42: ГОСТ 6402-70 | D42: 4
A43: 41 | B43: Шайба 12.65Г | C43: ГОСТ 6402-70 | D43: 2
A44: 42 | B44: Шайба 8.65Г | C44: ГОСТ 6402-70 | D44: 6
A45: 43 | B45: Шплинт 3,2х20 | C45: ГОСТ 397-79 | D45: 1
A46: 44 | B46: 715112.029 | C46: Ось | D46: 2

Sheet Сборка
A1: =MID(CELL("filename",A1),1+SEARCH("]",CELL("filename",A1)),99) -> Сборка
A2: № п/п | B2: Деталь | C2: Наименование | D2: Кол-во деталей
A3: 1 | B3: 685121.022-01 | C3: Нож контактный | D3: 1

Sheet Покупные
A1: =MID(CELL("filename",A1),1+SEARCH("]",CELL("filename",A1)),99) -> Покупные
A2: № п/п | B2: Деталь | C2: Наименование | D2: Кол-во деталей
A3: 1 | B3: 731213.001 | C3: Кожух | D3: 1
A4: 2 | B4: 753513.001 | C4: Пружина | D4: 1
A5: 3 | B5: 757491.002 | C5: Связь гибкая | D5: 1
A6: 4 | B6: С4-80-II УХЛ1 | C6: Изолятор ГОСТ 25073-81 | D6: 1

Sheet Механический
A1: =MID(CELL("filename",A1),1+SEARCH("]",CELL("filename",A1)),99) -> Механический
A2: № п/п | B2: Наименование | C2: Деталь | D2: Кол-во деталей | E2: Потребность ,кг | F2: Потребность Итого ,кг
A3: 1 | B3: 715112.028 | C3: Ось | D3: 1 | E3: 0,014 | F3: 0.014
A4: 2 | B4: 715112.029-01 | C4: Вал | D4: 1 | E4: 0,444 | F4: 0.444
A5: 3 | B5: 715412.012 | C5: Ось | D5: 1 | E5: 0,023 | F5: 0.023
A6: 4 | B6: 725421.001 | C6: Пружинодержатель | D6: 1 | E6: 0,005 | F6: 0.005
A7: 5 | B7: 741124.023 | C7: Пластина | D7: 1 | E7: 0,0167 | F7: 0.0167
A8: 6 | B8: 741124.104-01 | C8: Планка | D8: 1 | E8: 0,073 | F8: 0.073
A9: 7 | B9: 743125.002 | C9: Рычаг | D9: 1 | E9: 0,442 | F9: 0.442
A10: 8 | B10: 745112.008-01 | C10: Пластина | D10: 1 | E10: 0,274 | F10: 0.274
A11: 9 | B11: 745115.002 | C11: Пластина | D11: 2 | E11: 0,274 | F11: 0.548
A12: 10 | B12: 745212.063 | C12: Контакт | D12: 1 | E12: 0,146 | F12: 0.146
A13: 11 | B13: 745232.001-01 | C13: Угольник | D13: 1 | E13: 0,09 | F13: 0.09
A14: 12 | B14: 745242.031-02 | C14: Контакт | D14: 1 | E14: 0,146 | F14: 0.146
A15: 13 | B15: 745246.002 | C15: Контакт | D15: 1 | E15: 0,097 | F15: 0.097
A16: 14 | B16: 745247.001 | C16: Ламель | D16: 2 | E16: 0,067 | F16: 0.134
A17: 15 | B17: 745261.019 | C17: Угольник | D17: 2 | E17: 0,274 | F17: 0.548
A18: 16 | B18: 758491.003 | C18: Шайба | D18: 2 | E18: 0,046 | F18: 0.092
A19: 17 | B19: 758491.040 | C19: Шайба | D19: 4 | E19: 0,008 | F19: 0.032
A20: 18 | B20: 758491.154-03 | C20: Шайба 8х1.02.119 ГОСТ11371-78 | D20: 13 | E20: 0,003 | F20: 0.039
A21: 19 | B21: 758491.155-06 | C21: Шайба 10х1.02.119 ГОСТ11371-78 | D21: 4 | E21: 0,003 | F21: 0.012
A22: 20 | B22: 758491.156-03 | C22: Шайба 12х1.02.119 ГОСТ11371-78 | D22: 2 | E22: 0,003 | F22: 0.006
A23: 21 | B23: 715112.029 | C23: Ось | D23: 2 | E23: 0,014 | F23: 0.028

Sheet Материал
A1: =MID(CELL("filename",A1),1+SEARCH("]",CELL("filename",A1)),99) -> Материал
A2: № п/п | B2: Материал | C2: Потребность ,кг
A3: 1 | B3: Круг 8-h11х6000/20-В-Н ГОСТ 1051-73 | C3: 0.028
A4: 2 | B4: Круг 25-h11 ГОСТ 7417-75/20-В-Н ГОСТ 1051-73 | C4: 0.444
A5: 3 | B5: Круг 10-4 ГОСТ 7417-75 | C5: 0.023
A6: 4 | B6: Лист Б-ПН-0-1,0 ГОСТ 19903-74 | C6: 0.005
A7: 5 | B7: Лист 1х600х1500/ДПРНМ М1 ГОСТ 495-92 | C7: 0.0167
A8: 6 | B8: Лист 4 Ст3кп | C8: 0.073
A9: 7 | B9: Лист 6х1500х3000/Ст3пс 2 ГОСТ 14637-89 | C9: 0.442
A10: 8 | B10: Лист 2,5х1250х2500/К270В 4-II-Г ГОСТ 16523-97 | C10: 0.822
A11: 9 | B11: Лента 3х40 ДПРНТ М1 | C11: 0.292
A12: 10 | B12: Лист 5 Ст3кп | C12: 0.09
A13: 11 | B13: ПМТ 4,0х20 ГОСТ 434-78 | C13: 0.097
A14: 12 | B14: Лента 2х40 ДПРНТ М1 | C14: 0.067
A15: 13 | B15: Лист 4х1500х3000/Ст3пс 2 ГОСТ 14637-89 | C15: 0.046
A16: 14 | B16: Лист Б-ПН-0-2,5 ГОСТ 19903-74 | C16: 0.008
A17: 15 | B17: Лист 1х1250х2500/К270В 4-II-Г ГОСТ 16523-97 | C17: 0.009

Sheet Крепёж
A1: =MID(CELL("filename",A1),1+SEARCH("]",CELL("filename",A1)),99) -> Крепёж
A2: № п/п | B2: Деталь | C2: Наименование | D2: Кол-во деталей
A3: 1 | B3: Болт М10х20 | C3: ГОСТ 7798-70 | D3: 2
A4: 2 | B4: Болт М10х25 | C4: ГОСТ 7798-70 | D4: 1
A5: 3 | B5: Болт М10х35 | C5: ГОСТ 7798-70 | D5: 1
A6: 4 | B6: Болт М12х40 | C6: ГОСТ 7798-70 | D6: 2
A7: 5 | B7: Болт М8х20 | C7: ГОСТ 7798-70 | D7: 3
A8: 6 | B8: Болт М8х25 | C8: ГОСТ 7796-70 | D8: 3
A9: 7 | B9: Болт М8х70 | C9: ГОСТ 7798-70 | D9: 1
A10: 8 | B10: Гайка М10 | C10: ГОСТ 5915-70 | D10: 2
A11: 9 | B11: Гайка М12 | C11: ГОСТ 5915-70 | D11: 2
A12: 10 | B12: Гайка М8 | C12: ГОСТ 5915-70 | D12: 6
A13: 11 | B13: Заклепка 5х16.38.М3 | C13: ГОСТ 10299-80 | D13: 2
A14: 12 | B14: Шайба 10.65Г | C14: ГОСТ 6402-70 | D14: 4
A15: 13 | B15: Шайба 12.65Г | C15: ГОСТ 6402-70 | D15: 2
A16: 14 | B16: Шайба 8.65Г | C16: ГОСТ 6402-70 | D16: 6
A17: 15 | B17: Шплинт 3,2х20 | C17: ГОСТ 397-79 | D17: 1

Sheet Данные
A1: Номер детали | B1: Наименование детали | C1: Материал | D1: Масса детали, кг | E1: Норма расхода, кг | F1: Отходы, кг | G1: Масса детали, кг | H1: Норма расхода, кг | I1: Отходы, кг
A2: 301714.036 | B2: Пластина | C2: Узел | D2: 0 | E2: =D2 -> 0 | F2: =E2-D2 -> 0
A3: 304552.058-01 | B3: Рычаг | C3: Узел | D3: 0 | E3: =D3 -> 0 | F3: =E3-D3 -> 0
A4: 685121.022-01 | B4: Нож контактный | C4: Сборка | D4: 0 | E4: =D4 -> 0 | F4: =E4-D4 -> 0
A5: 685172.103 | B5: Нож контактный | C5: Узел | D5: 0 | E5: =D5 -> 0 | F5: =E5-D5 -> 0
A6: 715112.028 | B6: Ось | C6: Круг 8-h11х6000/20-В-Н ГОСТ 1051-73 | D6: 0.0098 | E6: 0.014 | F6: 0.0042
A7: 715112.029 | B7: Ось | C7: Круг 8-h11х6000/20-В-Н ГОСТ 1051-73 | D7: 0.0098 | E7: 0.014 | F7: =E7-D7 -> 0.0042
A8: 715112.029-01 | B8: Вал | C8: Круг 25-h11 ГОСТ 7417-75/20-В-Н ГОСТ 1051-73 | D8: 0.4 | E8: 0.444 | F8: 0.044
A9: 715412.012 | B9: Ось | C9: Круг 10-4 ГОСТ 7417-75 | D9: 0.015 | E9: 0.023 | F9: =E9-D9 -> 0.008
A10: 725421.001 | B10: Пружинодержатель | C10: Лист Б-ПН-0-1,0 ГОСТ 19903-74 | D10: 0.002 | E10: 0.005 | F10: =E10-D10 -> 0.003
A11: 731213.001 | B11: Кожух | C11: Кооперация | D11: 0 | E11: =D11 -> 0 | F11: 0
A12: 741124.023 | B12: Пластина | C12: Лист 1х600х1500/ДПРНМ М1 ГОСТ 495-92 | D12: 0.014 | E12: 0.0167 | F12: =E12-D12 -> 0.0027
A13: 741124.104-01 | B13: Планка | C13: Лист 4 Ст3кп | D13: 0.05 | E13: 0.073 | F13: 0.023
A14: 743125.002 | B14: Рычаг | C14: Лист 6х1500х3000/Ст3пс 2 ГОСТ 14637-89 | D14: 0.24 | E14: 0.442 | F14: =E14-D14 -> 0.202
A15: 745112.008-01 | B15: Пластина | C15: Лист 2,5х1250х2500/К270В 4-II-Г ГОСТ 16523-97 | D15: 0.17 | E15: 0.274 | F15: 0.104
A16: 745115.002 | B16: Пластина | C16: Лист 2,5х1250х2500/К270В 4-II-Г ГОСТ 16523-97 | D16: 0.07 | E16: 0.085 | F16: 0.015
A17: 745212.063 | B17: Контакт | C17: Лента 3х40 ДПРНТ М1 | D17: 0.14 | E17: 0.146 | F17: 0.006
A18: 745232.001-01 | B18: Угольник | C18: Лист 5 Ст3кп | D18: 0.07 | E18: 0.09 | F18: =E18-D18 -> 0.02
A19: 745242.031-02 | B19: Контакт | C19: Лента 3х40 ДПРНТ М1 | D19: 0.118 | E19: 0.1335 | F19: 0.0155
A20: 745246.002 | B20: Контакт | C20: ПМТ 4,0х20 ГОСТ 434-78 | D20: 0.08 | E20: 0.097 | F20: 0.017 | G20: 0.34 | H20: 0.447 | I20: =H20-G20 -> 0.107
A21: 745247.001 | B21: Ламель | C21: Лента 2х40 ДПРНТ М1 | D21: 0.056 | E21: 0.067 | F21: 0.011
A22: 745261.019 | B22: Угольник | C22: Лист 2,5х1250х2500/К270В 4-II-Г ГОСТ 16523-97 | D22: 0.026 | E22: 0.03 | F22: =E22-D22 -> 0.004
A23: 753513.001 | B23: Пружина | C23: Кооперация | D23: 0 | E23: =D23 -> 0 | F23: =E23-D23 -> 0
A24: 757491.002 | B24: Связь гибкая | C24: Кооперация | D24: 0 | E24: =D24 -> 0 | F24: =E24-D24 -> 0
A25: 758491.003 | B25: Шайба | C25: Лист 4х1500х3000/Ст3пс 2 ГОСТ 14637-89 | D25: 0.031 | E25: 0.046 | F25: =E25-D25 -> 0.015
A26: 758491.040 | B26: Шайба | C26: Лист Б-ПН-0-2,5 ГОСТ 19903-74 | D26: 0.003 | E26: 0.008 | F26: 0.005
A27: 758491.154-03 | B27: Шайба 8х1.02.119 ГОСТ11371-78 | C27: Лист 1х1250х2500/К270В 4-II-Г ГОСТ 16523-97 | D27: 0.0011 | E27: 0.003 | F27: =E27-D27 -> 0.0019
A28: 758491.155-06 | B28: Шайба 10х1.02.119 ГОСТ11371-78 | C28: Лист 1х1250х2500/К270В 4-II-Г ГОСТ 16523-97 | D28: 0.00178 | E28: 0.004 | F28: 0.00222
A29: 758491.156-03 | B29: Шайба 12х1.02.119 ГОСТ11371-78 | C29: Лист 1х1250х2500/К270В 4-II-Г ГОСТ 16523-97 | D29: 0.0025 | E29: 0.005 | F29: 0.0025
A30: Болт М10х20 | B30: ГОСТ 7798-70 | C30: Крепеж | D30: 0 | E30: =D30 -> 0 | F30: 0
A31: Болт М10х25 | B31: ГОСТ 7798-70 | C31: Крепеж | D31: 0 | E31: 0 | F31: 0
A32: Болт М10х35 | B32: ГОСТ 7798-70 | C32: Крепеж | D32: 0 | E32: 0 | F32: 0
A33: Болт М12х40 | B33: ГОСТ 7798-70 | C33: Крепеж | D33: 0 | E33: 0 | F33: =E33-D33 -> 0
A34: Болт М8х20 | B34: ГОСТ 7798-70 | C34: Крепеж | D34: 0 | E34: 0 | F34: 0
A35: Болт М8х25 | B35: ГОСТ 7796-70 | C35: Крепеж | D35: 0 | E35: 0 | F35: 0
A36: Болт М8х70 | B36: ГОСТ 7798-70 | C36: Крепеж | D36: 0 | E36: 0 | F36: 0
A37: Гайка М10 | B37: ГОСТ 5915-70 | C37: Крепеж | D37: 0 | E37: =D37 -> 0 | F37: =E37-D37 -> 0
A38: Гайка М12 | B38: ГОСТ 5915-70 | C38: Крепеж | D38: 0 | E38: 0 | F38: =E38-D38 -> 0
A39: Гайка М8 | B39: ГОСТ 5915-70 | C39: Крепеж | D39: 0 | E39: 0 | F39: 0
A40: Заклепка 5х16.38.М3 | B40: ГОСТ 10299-80 | C40: Крепеж | D40: 0 | E40: 0 | F40: 0
A41: С4-80-II УХЛ1 | B41: Изолятор ГОСТ 25073-81 | C41: Кооперация | D41: 0 | E41: =D41 -> 0 | F41: =E41-D41 -> 0
A42: Шайба 10.65Г | B42: ГОСТ 6402-70 | C42: Крепеж | D42: 0 | E42: =D42 -> 0 | F42: =E42-D42 -> 0
A43: Шайба 12.65Г | B43: ГОСТ 6402-70 | C43: Крепеж | D43: 0 | E43: 0 | F43: 0
A44: Шайба 8.65Г | B44: ГОСТ 6402-70 | C44: Крепеж | D44: 0 | E44: 0 | F44: 0
A45: Шплинт 3,2х20 | B45: ГОСТ 397-79 | C45: Крепеж | D45: 0 | E45: 0 | F45: 0
